[Event "Titled Tuesday Blitz October 18 Late 2022"]
[White "Sabar, Ethmane Daouda"]
[Black "Melikhov, Evgeny V."]
[WhiteFideId "19600097"]
[BlackFideId "4122046"]
[WhiteElo "1950"]
[BlackElo "2169"]
[Result "0-1"]
[Round "05"]
[TimeControl "180+1"]
[Date "2022.10.19"]
[WhiteClock "0:00:17"]
[BlackClock "0:00:09"]

1. b3 {[%clk 0:03:00]}  e5 {[%clk 0:02:59]} 2. Bb2 {[%clk 0:03:01]}  Nc6 {[%clk 0:02:58]} 3. e3 {[%clk 0:03:02]}  a6 {[%clk 0:02:57]} 4. c4 {[%clk 0:02:56]}  d5 {[%clk 0:02:56]} 5. d4 {[%clk 0:02:56]}  exd4 {[%clk 0:02:50]} 6. exd4 {[%clk 0:02:51]}  Nf6 {[%clk 0:02:49]} 7. a3 {[%clk 0:02:36]}  Be7 {[%clk 0:02:46]} 8. Nf3 {[%clk 0:02:35]}  O-O {[%clk 0:02:45]} 9. Be2 {[%clk 0:02:35]}  Bf5 {[%clk 0:02:41]} 10. O-O {[%clk 0:02:34]}  h6 {[%clk 0:02:35]} 11. Nc3 {[%clk 0:02:26]}  Re8 {[%clk 0:02:21]} 12. Re1 {[%clk 0:02:25]}  Bh7 {[%clk 0:02:12]} 13. Ne5 {[%clk 0:02:07]}  dxc4 {[%clk 0:01:49]} 14. Nxc6 {[%clk 0:02:04]}  bxc6 {[%clk 0:01:48]} 15. bxc4 {[%clk 0:02:05]}  Rb8 {[%clk 0:01:45]} 16. Qd2 {[%clk 0:02:00]}  Bd6 {[%clk 0:01:22]} 17. Bf3 {[%clk 0:01:59]}  Rxe1+ {[%clk 0:01:02]} 18. Rxe1 {[%clk 0:02:00]}  Qd7 {[%clk 0:01:02]} 19. h3 {[%clk 0:01:30]}  Qf5 {[%clk 0:00:58]} 20. Bxc6 {[%clk 0:01:19]}  Qd3 {[%clk 0:00:53]} 21. Rd1 {[%clk 0:00:55]}  Qxc4 {[%clk 0:00:52]} 22. d5 {[%clk 0:00:48]}  Bf4 {[%clk 0:00:44]} 23. Qe2 {[%clk 0:00:38]}  Qxe2 {[%clk 0:00:44]} 24. Nxe2 {[%clk 0:00:39]}  Rxb2 {[%clk 0:00:41]} 25. Nxf4 {[%clk 0:00:38]}  Ne4 {[%clk 0:00:41]} 26. Nd3 {[%clk 0:00:34]}  Ra2 {[%clk 0:00:36]} 27. Nb4 {[%clk 0:00:28]}  Rxa3 {[%clk 0:00:34]} 28. d6 {[%clk 0:00:28]}  Nxd6 {[%clk 0:00:33]} 29. Nd5 {[%clk 0:00:25]}  Rd3 {[%clk 0:00:27]} 30. Ra1 {[%clk 0:00:20]}  Be4 {[%clk 0:00:21]} 31. Ne7+ {[%clk 0:00:16]}  Kh7 {[%clk 0:00:20]} 32. Bxe4+ {[%clk 0:00:17]}  Nxe4 {[%clk 0:00:20]} 33. Rxa6 {[%clk 0:00:17]}  c5 {[%clk 0:00:18]} 34. Rc6 {[%clk 0:00:16]}  Rd1+ {[%clk 0:00:17]} 35. Kh2 {[%clk 0:00:16]}  Rc1 {[%clk 0:00:17]} 36. f3 {[%clk 0:00:11]}  Nf2 {[%clk 0:00:16]} 37. Nf5 {[%clk 0:00:09]}  c4 {[%clk 0:00:13]} 38. Kg3 {[%clk 0:00:09]}  Nh1+ {[%clk 0:00:12]} 39. Kf4 {[%clk 0:00:09]}  c3 {[%clk 0:00:11]} 40. Ke3 {[%clk 0:00:09]}  c2 {[%clk 0:00:09]} 41. Kd2 {[%clk 0:00:09]}  Rg1 {[%clk 0:00:09]} 42. Rxc2 {[%clk 0:00:08]}  Rxg2+ {[%clk 0:00:10]} 43. Kd3 {[%clk 0:00:09]}  Rxc2 {[%clk 0:00:10]} 44. Kxc2 {[%clk 0:00:10]}  Kg6 {[%clk 0:00:09]} 45. Kd3 {[%clk 0:00:11]}  Kxf5 {[%clk 0:00:10]} 46. Ke3 {[%clk 0:00:11]}  g5 {[%clk 0:00:09]} 47. f4 {[%clk 0:00:12]}  gxf4+ {[%clk 0:00:09]} 48. Kf3 {[%clk 0:00:12]}  Ng3 {[%clk 0:00:09]} 49. h4 {[%clk 0:00:13]}  h5 {[%clk 0:00:08]} 50. Kg2 {[%clk 0:00:14]}  Kg4 {[%clk 0:00:08]} 51. Kh2 {[%clk 0:00:14]}  Kf3 {[%clk 0:00:08]} 52. Kg1 {[%clk 0:00:14]}  Ke3 {[%clk 0:00:08]} 53. Kh2 {[%clk 0:00:15]}  Nf5 {[%clk 0:00:09]} 54. Kg1 {[%clk 0:00:16]}  f3 {[%clk 0:00:09]} 55. Kh2 {[%clk 0:00:17]}  f2 {[%clk 0:00:09]} 56. Kh3 {[%clk 0:00:17]}  f1=Q+ {[%clk 0:00:08]} 57. Kh2 {[%clk 0:00:17]}  Qf2+ {[%clk 0:00:08]} 58. Kh1 {[%clk 0:00:17]}  Ng3# {[%clk 0:00:09]} 0-1


[Site "https://www.chess.com"]

[Event "Titled Tuesday Blitz October 18 Late 2022"]
[White "Sailer, Mike"]
[Black "Ardila, Oscar Humberto"]
[WhiteFideId "2012901"]
[BlackFideId "4404742"]
[WhiteElo "2109"]
[BlackElo "1898"]
[Result "0-1"]
[Round "05"]
[TimeControl "180+1"]
[Date "2022.10.19"]
[WhiteClock "0:00:02"]
[BlackClock "0:00:24"]

1. d4 {[%clk 0:02:58]}  Nf6 {[%clk 0:02:59]} 2. Bf4 {[%clk 0:02:58]}  g6 {[%clk 0:02:58]} 3. Nc3 {[%clk 0:02:59]}  Bg7 {[%clk 0:02:58]} 4. e4 {[%clk 0:02:59]}  d6 {[%clk 0:02:58]} 5. Qd2 {[%clk 0:03:00]}  h6 {[%clk 0:02:58]} 6. O-O-O {[%clk 0:02:59]}  Nh5 {[%clk 0:02:56]} 7. Be3 {[%clk 0:02:59]}  Nc6 {[%clk 0:02:55]} 8. Be2 {[%clk 0:02:50]}  Nf6 {[%clk 0:02:52]} 9. h4 {[%clk 0:02:50]}  e5 {[%clk 0:02:51]} 10. d5 {[%clk 0:02:45]}  Nb8 {[%clk 0:02:47]} 11. h5 {[%clk 0:02:45]}  g5 {[%clk 0:02:45]} 12. f3 {[%clk 0:02:28]}  Nh7 {[%clk 0:02:40]} 13. g4 {[%clk 0:02:27]}  O-O {[%clk 0:02:39]} 14. Kb1 {[%clk 0:02:20]}  a6 {[%clk 0:02:38]} 15. Nh3 {[%clk 0:02:14]}  Bf6 {[%clk 0:02:38]} 16. Nf2 {[%clk 0:02:05]}  b5 {[%clk 0:02:37]} 17. Rc1 {[%clk 0:02:02]}  Nd7 {[%clk 0:02:36]} 18. Rhe1 {[%clk 0:01:48]}  Nc5 {[%clk 0:02:35]} 19. Nh1 {[%clk 0:01:45]}  b4 {[%clk 0:02:30]} 20. Nd1 {[%clk 0:01:45]}  a5 {[%clk 0:02:29]} 21. Ng3 {[%clk 0:01:45]}  Qe8 {[%clk 0:02:25]} 22. Bc4 {[%clk 0:01:38]}  Qa4 {[%clk 0:02:24]} 23. Qe2 {[%clk 0:01:30]}  Rb8 {[%clk 0:02:21]} 24. Bxc5 {[%clk 0:01:16]}  dxc5 {[%clk 0:02:20]} 25. Ne3 {[%clk 0:01:09]}  Bg7 {[%clk 0:01:43]} 26. Ngf5 {[%clk 0:01:03]}  Bxf5 {[%clk 0:01:43]} 27. Nxf5 {[%clk 0:01:04]}  Nf6 {[%clk 0:01:42]} 28. Ne7+ {[%clk 0:00:58]}  Kh8 {[%clk 0:01:41]} 29. Nc6 {[%clk 0:00:59]}  Rb6 {[%clk 0:01:32]} 30. Nxe5 {[%clk 0:00:50]}  Qe8 {[%clk 0:01:24]} 31. Nc6 {[%clk 0:00:44]}  Nd7 {[%clk 0:01:17]} 32. e5 {[%clk 0:00:41]}  Rxc6 {[%clk 0:01:11]} 33. dxc6 {[%clk 0:00:37]}  Nxe5 {[%clk 0:01:11]} 34. Bd3 {[%clk 0:00:28]}  Qxc6 {[%clk 0:01:01]} 35. Qe4 {[%clk 0:00:23]}  Qxe4 {[%clk 0:01:01]} 36. Bxe4 {[%clk 0:00:24]}  Nc4 {[%clk 0:00:53]} 37. c3 {[%clk 0:00:21]}  bxc3 {[%clk 0:00:49]} 38. bxc3 {[%clk 0:00:20]}  Rb8+ {[%clk 0:00:48]} 39. Ka1 {[%clk 0:00:21]}  a4 {[%clk 0:00:38]} 40. Bd5 {[%clk 0:00:19]}  Na3 {[%clk 0:00:36]} 41. Bxf7 {[%clk 0:00:05]}  Nb5 {[%clk 0:00:35]} 42. Re8+ {[%clk 0:00:05]}  Rxe8 {[%clk 0:00:34]} 43. Bxe8 {[%clk 0:00:06]}  Nxc3 {[%clk 0:00:33]} 44. Re1 {[%clk 0:00:03]}  a3 {[%clk 0:00:27]} 45. Re7 {[%clk 0:00:02]}  Nd5+ {[%clk 0:00:24]} 46. Kb1 {[%clk 0:00:02]}  Nxe7 {[%clk 0:00:24]} 0-1


[Site "https://www.chess.com"]

[Event "Titled Tuesday Blitz October 18 Late 2022"]
[White "Sala, Giulia"]
[Black "O`Gorman, Tom"]
[WhiteFideId "2840451"]
[BlackFideId "2508249"]
[WhiteElo "1769"]
[BlackElo "2271"]
[Result "0-1"]
[Round "05"]
[TimeControl "180+1"]
[Date "2022.10.19"]
[WhiteClock "0:00:50"]
[BlackClock "0:01:45"]

1. e4 {[%clk 0:01:48]}  c6 {[%clk 0:02:55]} 2. e5 {[%clk 0:01:46]}  d5 {[%clk 0:02:56]} 3. exd6 {[%clk 0:01:46]}  exd6 {[%clk 0:02:56]} 4. g3 {[%clk 0:01:46]}  Nf6 {[%clk 0:02:55]} 5. Bg2 {[%clk 0:01:47]}  d5 {[%clk 0:02:56]} 6. d4 {[%clk 0:01:47]}  Bd6 {[%clk 0:02:56]} 7. Nf3 {[%clk 0:01:47]}  O-O {[%clk 0:02:57]} 8. O-O {[%clk 0:01:47]}  Bf5 {[%clk 0:02:55]} 9. c3 {[%clk 0:01:47]}  h6 {[%clk 0:02:55]} 10. Be3 {[%clk 0:01:46]}  Re8 {[%clk 0:02:45]} 11. Qc1 {[%clk 0:01:44]}  Nbd7 {[%clk 0:02:44]} 12. Nbd2 {[%clk 0:01:44]}  Nf8 {[%clk 0:02:43]} 13. Nb3 {[%clk 0:01:41]}  Qd7 {[%clk 0:02:41]} 14. Nc5 {[%clk 0:01:40]}  Qc8 {[%clk 0:02:41]} 15. Rd1 {[%clk 0:01:36]}  Ng6 {[%clk 0:02:35]} 16. Nd3 {[%clk 0:01:36]}  Ne4 {[%clk 0:02:34]} 17. Bf4 {[%clk 0:01:32]}  Nxf4 {[%clk 0:02:33]} 18. Nxf4 {[%clk 0:01:33]}  Bg4 {[%clk 0:02:31]} 19. Re1 {[%clk 0:01:29]}  Qc7 {[%clk 0:02:25]} 20. Ne5 {[%clk 0:01:26]}  Bxe5 {[%clk 0:02:13]} 21. dxe5 {[%clk 0:01:27]}  Rxe5 {[%clk 0:02:11]} 22. f3 {[%clk 0:01:27]}  Qb6+ {[%clk 0:02:05]} 23. Qe3 {[%clk 0:01:20]}  Qxb2 {[%clk 0:02:04]} 24. fxe4 {[%clk 0:01:13]}  dxe4 {[%clk 0:01:59]} 25. Qd4 {[%clk 0:01:09]}  Rae8 {[%clk 0:01:57]} 26. Reb1 {[%clk 0:01:05]}  Qc2 {[%clk 0:01:54]} 27. Rc1 {[%clk 0:01:04]}  Qb2 {[%clk 0:01:49]} 28. Rcb1 {[%clk 0:01:04]}  Qa3 {[%clk 0:01:47]} 29. Rxb7 {[%clk 0:01:03]}  e3 {[%clk 0:01:47]} 30. Rxa7 {[%clk 0:01:00]}  Qb2 {[%clk 0:01:45]} 31. Re1 {[%clk 0:01:00]}  Qf2+ {[%clk 0:01:44]} 32. Kh1 {[%clk 0:00:50]}  Qxe1+ {[%clk 0:01:45]} 0-1


[Site "https://www.chess.com"]

[Event "Titled Tuesday Blitz October 18 Late 2022"]
[White "Saravana, Krishnan P."]
[Black "Kobla, Vishal"]
[WhiteFideId "5018382"]
[BlackFideId "2078457"]
[WhiteElo "2155"]
[BlackElo "1972"]
[Result "1-0"]
[Round "05"]
[TimeControl "180+1"]
[Date "2022.10.19"]
[WhiteClock "0:00:49"]
[BlackClock "0:00:56"]

1. e4 {[%clk 0:02:48]}  c5 {[%clk 0:02:59]} 2. Nf3 {[%clk 0:02:47]}  Nc6 {[%clk 0:03:00]} 3. Bb5 {[%clk 0:02:46]}  e6 {[%clk 0:03:00]} 4. O-O {[%clk 0:02:45]}  Nge7 {[%clk 0:03:00]} 5. d4 {[%clk 0:02:45]}  cxd4 {[%clk 0:02:57]} 6. Nxd4 {[%clk 0:02:45]}  a6 {[%clk 0:02:53]} 7. Be2 {[%clk 0:02:44]}  b5 {[%clk 0:02:52]} 8. a4 {[%clk 0:02:31]}  Nxd4 {[%clk 0:02:47]} 9. Qxd4 {[%clk 0:02:30]}  Nc6 {[%clk 0:02:47]} 10. Qc3 {[%clk 0:02:29]}  b4 {[%clk 0:02:47]} 11. Qg3 {[%clk 0:02:29]}  h5 {[%clk 0:02:42]} 12. Bg5 {[%clk 0:02:19]}  Qa5 {[%clk 0:02:37]} 13. Nd2 {[%clk 0:02:14]}  d5 {[%clk 0:02:12]} 14. Nb3 {[%clk 0:02:05]}  Qb6 {[%clk 0:02:06]} 15. exd5 {[%clk 0:02:03]}  exd5 {[%clk 0:02:05]} 16. Rae1 {[%clk 0:02:01]}  Be6 {[%clk 0:02:05]} 17. Bf4 {[%clk 0:01:41]}  h4 {[%clk 0:02:00]} 18. Qg5 {[%clk 0:01:35]}  Qd8 {[%clk 0:01:49]} 19. Bf3 {[%clk 0:01:03]}  Be7 {[%clk 0:01:07]} 20. Qxg7 {[%clk 0:01:00]}  Bf6 {[%clk 0:01:08]} 21. Qg4 {[%clk 0:00:52]}  Kd7 {[%clk 0:00:58]} 22. Nc5+ {[%clk 0:00:51]}  Kc8 {[%clk 0:00:56]} 23. Rxe6 {[%clk 0:00:49]} 1-0


[Site "https://www.chess.com"]

[Event "Titled Tuesday Blitz October 18 Late 2022"]
[White "Schut, Han"]
[Black "Bongo Akanga Ndjila, Barthelemy"]
[WhiteFideId "1005561"]
[BlackFideId "10609431"]
[WhiteElo "2024"]
[BlackElo "1768"]
[Result "1/2-1/2"]
[Round "05"]
[TimeControl "180+1"]
[Date "2022.10.19"]
[WhiteClock "0:00:11"]
[BlackClock "0:01:22"]

1. e4 {[%clk 0:03:00]}  c6 {[%clk 0:02:59]} 2. d4 {[%clk 0:02:59]}  d5 {[%clk 0:03:00]} 3. e5 {[%clk 0:03:00]}  Bf5 {[%clk 0:02:58]} 4. Nf3 {[%clk 0:03:00]}  e6 {[%clk 0:02:54]} 5. Be2 {[%clk 0:03:00]}  c5 {[%clk 0:02:50]} 6. Be3 {[%clk 0:02:57]}  Nc6 {[%clk 0:02:47]} 7. Nc3 {[%clk 0:02:52]}  cxd4 {[%clk 0:02:44]} 8. Nxd4 {[%clk 0:02:48]}  Nge7 {[%clk 0:02:45]} 9. f4 {[%clk 0:02:29]}  a6 {[%clk 0:02:44]} 10. O-O {[%clk 0:02:21]}  Bg6 {[%clk 0:02:42]} 11. Qd2 {[%clk 0:01:55]}  Nf5 {[%clk 0:02:41]} 12. Nxf5 {[%clk 0:01:46]}  Bxf5 {[%clk 0:02:40]} 13. g4 {[%clk 0:01:36]}  d4 {[%clk 0:02:40]} 14. gxf5 {[%clk 0:01:36]}  dxe3 {[%clk 0:02:40]} 15. Qxd8+ {[%clk 0:01:30]}  Rxd8 {[%clk 0:02:38]} 16. fxe6 {[%clk 0:01:31]}  fxe6 {[%clk 0:02:37]} 17. Rad1 {[%clk 0:01:30]}  Rxd1 {[%clk 0:02:31]} 18. Rxd1 {[%clk 0:01:29]}  Bc5 {[%clk 0:02:30]} 19. Ne4 {[%clk 0:01:26]}  Be7 {[%clk 0:02:28]} 20. Nd6+ {[%clk 0:01:21]}  Bxd6 {[%clk 0:02:27]} 21. Rxd6 {[%clk 0:01:22]}  Ke7 {[%clk 0:02:26]} 22. Bc4 {[%clk 0:01:17]}  Nd8 {[%clk 0:02:20]} 23. Kg2 {[%clk 0:01:03]}  Rf8 {[%clk 0:02:18]} 24. Kf3 {[%clk 0:01:03]}  g5 {[%clk 0:02:18]} 25. Rd4 {[%clk 0:00:56]}  Nc6 {[%clk 0:02:11]} 26. Re4 {[%clk 0:00:52]}  gxf4 {[%clk 0:02:11]} 27. Be2 {[%clk 0:00:39]}  Rf5 {[%clk 0:02:08]} 28. Rxf4 {[%clk 0:00:39]}  Nxe5+ {[%clk 0:02:07]} 29. Kxe3 {[%clk 0:00:39]}  Rg5 {[%clk 0:01:58]} 30. Ke4 {[%clk 0:00:35]}  Nc6 {[%clk 0:01:54]} 31. Bg4 {[%clk 0:00:31]}  Re5+ {[%clk 0:01:53]} 32. Kd3 {[%clk 0:00:25]}  h5 {[%clk 0:01:54]} 33. Bf3 {[%clk 0:00:21]}  Kd6 {[%clk 0:01:42]} 34. Bxc6 {[%clk 0:00:21]}  Kxc6 {[%clk 0:01:41]} 35. Re4 {[%clk 0:00:20]}  Rd5+ {[%clk 0:01:34]} 36. Kc4 {[%clk 0:00:19]}  Rd2 {[%clk 0:01:34]} 37. Rxe6+ {[%clk 0:00:18]}  Kd7 {[%clk 0:01:34]} 38. Rh6 {[%clk 0:00:18]}  Rxh2 {[%clk 0:01:33]} 39. Rh7+ {[%clk 0:00:16]}  Kc6 {[%clk 0:01:33]} 40. Rh6+ {[%clk 0:00:16]}  Kc7 {[%clk 0:01:33]} 41. Rh7+ {[%clk 0:00:16]}  Kb8 {[%clk 0:01:34]} 42. c3 {[%clk 0:00:15]}  h4 {[%clk 0:01:33]} 43. a4 {[%clk 0:00:15]}  Rh1 {[%clk 0:01:34]} 44. b4 {[%clk 0:00:15]}  h3 {[%clk 0:01:33]} 45. a5 {[%clk 0:00:15]}  h2 {[%clk 0:01:32]} 46. Rh6 {[%clk 0:00:15]}  Kc7 {[%clk 0:01:30]} 47. Rh7+ {[%clk 0:00:16]}  Kd6 {[%clk 0:01:28]} 48. Rh6+ {[%clk 0:00:16]}  Ke5 {[%clk 0:01:28]} 49. Rh7 {[%clk 0:00:16]}  Kf4 {[%clk 0:01:27]} 50. Kc5 {[%clk 0:00:12]}  Ke4 {[%clk 0:01:25]} 51. Kb6 {[%clk 0:00:12]}  Kd3 {[%clk 0:01:26]} 52. Kxb7 {[%clk 0:00:13]}  Kxc3 {[%clk 0:01:26]} 53. Kxa6 {[%clk 0:00:13]}  Kxb4 {[%clk 0:01:27]} 54. Rh4+ {[%clk 0:00:13]}  Kc5 {[%clk 0:01:24]} 55. Rh5+ {[%clk 0:00:13]}  Kc6 {[%clk 0:01:25]} 56. Rh6+ {[%clk 0:00:13]}  Kd7 {[%clk 0:01:25]} 57. Rh7+ {[%clk 0:00:13]}  Ke6 {[%clk 0:01:25]} 58. Ka7 {[%clk 0:00:13]}  Kf6 {[%clk 0:01:24]} 59. a6 {[%clk 0:00:12]}  Kg6 {[%clk 0:01:24]} 60. Rh3 {[%clk 0:00:12]}  Kf7 {[%clk 0:01:22]} 61. Ka8 {[%clk 0:00:12]}  Ke6 {[%clk 0:01:22]} 62. a7 {[%clk 0:00:12]}  Kd7 {[%clk 0:01:22]} 63. Rh7+ {[%clk 0:00:12]}  Ke6 {[%clk 0:01:22]} 64. Rh6+ {[%clk 0:00:12]}  Kf5 {[%clk 0:01:22]} 65. Rh8 {[%clk 0:00:12]}  Kf6 {[%clk 0:01:22]} 66. Rh6+ {[%clk 0:00:12]}  Kg7 {[%clk 0:01:22]} 67. Rh3 {[%clk 0:00:13]}  Kg6 {[%clk 0:01:22]} 68. Rh8 {[%clk 0:00:13]}  Kg7 {[%clk 0:01:22]} 69. Rh3 {[%clk 0:00:13]}  Kg6 {[%clk 0:01:22]} 70. Rh8 {[%clk 0:00:11]}  Kg7 {[%clk 0:01:22]} 71. Rh3 {[%clk 0:00:11]} 1/2-1/2


[Site "https://www.chess.com"]

[Event "Titled Tuesday Blitz October 18 Late 2022"]
[White "Souleidis, Georgios"]
[Black "Torres Boch, Jose Francisco"]
[WhiteFideId "4206827"]
[BlackFideId "2278383"]
[WhiteElo "2401"]
[BlackElo "2073"]
[Result "0-1"]
[Round "05"]
[TimeControl "180+1"]
[Date "2022.10.19"]
[WhiteClock "0:00:10"]
[BlackClock "0:00:45"]

1. e4 {[%clk 0:02:53]}  e5 {[%clk 0:02:58]} 2. Nc3 {[%clk 0:02:53]}  Nc6 {[%clk 0:02:58]} 3. f4 {[%clk 0:02:52]}  exf4 {[%clk 0:02:57]} 4. Nf3 {[%clk 0:02:53]}  g5 {[%clk 0:02:57]} 5. d4 {[%clk 0:02:52]}  g4 {[%clk 0:02:44]} 6. Ne5 {[%clk 0:02:01]}  Nxe5 {[%clk 0:02:29]} 7. dxe5 {[%clk 0:02:01]}  Qh4+ {[%clk 0:02:30]} 8. Ke2 {[%clk 0:02:01]}  f3+ {[%clk 0:02:23]} 9. Kd3 {[%clk 0:01:43]}  b6 {[%clk 0:02:20]} 10. Nd5 {[%clk 0:01:33]}  Ba6+ {[%clk 0:02:15]} 11. c4 {[%clk 0:01:33]}  O-O-O {[%clk 0:02:11]} 12. Bf4 {[%clk 0:00:49]}  c6 {[%clk 0:02:06]} 13. Ne3 {[%clk 0:00:37]}  d5 {[%clk 0:02:03]} 14. Kc2 {[%clk 0:00:25]}  dxe4 {[%clk 0:01:57]} 15. Qe1 {[%clk 0:00:25]}  Qe7 {[%clk 0:01:51]} 16. a3 {[%clk 0:00:23]}  Bg7 {[%clk 0:01:44]} 17. Qc3 {[%clk 0:00:23]}  Re8 {[%clk 0:01:28]} 18. Nxg4 {[%clk 0:00:22]}  h5 {[%clk 0:01:26]} 19. Ne3 {[%clk 0:00:20]}  Bxe5 {[%clk 0:01:19]} 20. Bxe5 {[%clk 0:00:20]}  Qxe5 {[%clk 0:01:19]} 21. gxf3 {[%clk 0:00:20]}  Qxc3+ {[%clk 0:01:08]} 22. Kxc3 {[%clk 0:00:20]}  exf3 {[%clk 0:01:08]} 23. Bh3+ {[%clk 0:00:21]}  Kc7 {[%clk 0:01:08]} 24. Nf5 {[%clk 0:00:18]}  Ne7 {[%clk 0:01:03]} 25. Nd4 {[%clk 0:00:16]}  c5 {[%clk 0:01:00]} 26. Nxf3 {[%clk 0:00:16]}  Bb7 {[%clk 0:01:00]} 27. Rhf1 {[%clk 0:00:16]}  Ng6 {[%clk 0:00:58]} 28. Kd2 {[%clk 0:00:12]}  Nf4 {[%clk 0:00:52]} 29. Bf5 {[%clk 0:00:12]}  Re2+ {[%clk 0:00:51]} 30. Kc3 {[%clk 0:00:11]}  Re3+ {[%clk 0:00:49]} 31. Kc2 {[%clk 0:00:11]}  Rxf3 {[%clk 0:00:50]} 32. Rxf3 {[%clk 0:00:11]}  Bxf3 {[%clk 0:00:49]} 33. Rf1 {[%clk 0:00:12]}  Ne2 {[%clk 0:00:45]} 34. Kd3 {[%clk 0:00:10]}  Nd4 {[%clk 0:00:45]} 35. b4 {[%clk 0:00:10]}  Be2+ {[%clk 0:00:45]} 0-1


[Site "https://www.chess.com"]

[Event "Titled Tuesday Blitz October 18 Late 2022"]
[White "Souza Santos, Carlos Roberto"]
[Black "Yano, William Jorge Froes"]
[WhiteFideId "2150603"]
[BlackFideId "2112949"]
[WhiteElo "2064"]
[BlackElo "2122"]
[Result "0-1"]
[Round "05"]
[TimeControl "180+1"]
[Date "2022.10.19"]
[WhiteClock "0:00:42"]
[BlackClock "0:00:11"]

1. e4 {[%clk 0:03:00]}  e6 {[%clk 0:02:59]} 2. d3 {[%clk 0:03:00]}  d5 {[%clk 0:02:59]} 3. Nd2 {[%clk 0:03:01]}  Nf6 {[%clk 0:02:59]} 4. Ngf3 {[%clk 0:03:00]}  h6 {[%clk 0:02:59]} 5. g3 {[%clk 0:03:00]}  c5 {[%clk 0:02:59]} 6. Bg2 {[%clk 0:03:00]}  Nc6 {[%clk 0:02:59]} 7. O-O {[%clk 0:03:01]}  Be7 {[%clk 0:02:59]} 8. Qe2 {[%clk 0:02:59]}  O-O {[%clk 0:02:58]} 9. Re1 {[%clk 0:02:55]}  b6 {[%clk 0:02:50]} 10. e5 {[%clk 0:02:53]}  Nd7 {[%clk 0:02:49]} 11. Nf1 {[%clk 0:02:49]}  Ba6 {[%clk 0:02:31]} 12. h4 {[%clk 0:02:47]}  Qc7 {[%clk 0:02:18]} 13. Bf4 {[%clk 0:02:46]}  Rac8 {[%clk 0:02:17]} 14. b3 {[%clk 0:02:45]}  Nd4 {[%clk 0:02:17]} 15. Qd2 {[%clk 0:02:38]}  Nxf3+ {[%clk 0:02:02]} 16. Bxf3 {[%clk 0:02:37]}  c4 {[%clk 0:02:00]} 17. Rac1 {[%clk 0:02:32]}  Ba3 {[%clk 0:01:56]} 18. Rcd1 {[%clk 0:02:27]}  cxd3 {[%clk 0:01:51]} 19. cxd3 {[%clk 0:02:26]}  Qc2 {[%clk 0:01:51]} 20. Nh2 {[%clk 0:02:14]}  Qxd2 {[%clk 0:01:42]} 21. Bxd2 {[%clk 0:02:09]}  Bxd3 {[%clk 0:01:41]} 22. Ng4 {[%clk 0:01:55]}  Bc2 {[%clk 0:01:31]} 23. Kg2 {[%clk 0:01:34]}  Bxd1 {[%clk 0:01:31]} 24. Bxd1 {[%clk 0:01:33]}  Rc7 {[%clk 0:01:22]} 25. h5 {[%clk 0:01:30]}  Rfc8 {[%clk 0:01:21]} 26. Bxh6 {[%clk 0:01:29]}  gxh6 {[%clk 0:01:20]} 27. Nxh6+ {[%clk 0:01:30]}  Kg7 {[%clk 0:01:21]} 28. Ng4 {[%clk 0:01:29]}  Rc1 {[%clk 0:01:16]} 29. h6+ {[%clk 0:01:28]}  Kh7 {[%clk 0:01:05]} 30. Rh1 {[%clk 0:01:26]}  Rg8 {[%clk 0:00:26]} 31. Ne3 {[%clk 0:01:21]}  Nxe5 {[%clk 0:00:22]} 32. Bc2+ {[%clk 0:01:20]}  Ng6 {[%clk 0:00:21]} 33. Bd1 {[%clk 0:01:17]}  d4 {[%clk 0:00:15]} 34. Ng4 {[%clk 0:01:17]}  Be7 {[%clk 0:00:12]} 35. Kf3 {[%clk 0:01:12]}  f5 {[%clk 0:00:11]} 36. Nh2 {[%clk 0:01:08]}  e5 {[%clk 0:00:12]} 37. Kg2 {[%clk 0:01:06]}  Rgc8 {[%clk 0:00:11]} 38. g4 {[%clk 0:01:00]}  f4 {[%clk 0:00:11]} 39. Nf3 {[%clk 0:00:59]}  Ra1 {[%clk 0:00:10]} 40. g5 {[%clk 0:00:54]}  Rcc1 {[%clk 0:00:10]} 41. Rg1 {[%clk 0:00:52]}  Rxd1 {[%clk 0:00:10]} 42. Rxd1 {[%clk 0:00:48]}  Rxd1 {[%clk 0:00:11]} 43. Kh3 {[%clk 0:00:46]}  e4 {[%clk 0:00:12]} 44. Nh2 {[%clk 0:00:44]}  d3 {[%clk 0:00:11]} 45. Kg4 {[%clk 0:00:44]}  Rh1 {[%clk 0:00:10]} 46. Kh3 {[%clk 0:00:43]}  Bd6 {[%clk 0:00:09]} 47. Kg2 {[%clk 0:00:43]}  Rxh2+ {[%clk 0:00:08]} 48. Kxh2 {[%clk 0:00:44]}  d2 {[%clk 0:00:09]} 49. Kh3 {[%clk 0:00:43]}  d1=Q {[%clk 0:00:10]} 50. b4 {[%clk 0:00:42]}  Qf3+ {[%clk 0:00:11]} 51. Kh2 {[%clk 0:00:41]}  Qxf2+ {[%clk 0:00:11]} 52. Kh3 {[%clk 0:00:42]}  Qg3# {[%clk 0:00:11]} 0-1


[Site "https://www.chess.com"]

[Event "Titled Tuesday Blitz October 18 Late 2022"]
[White "Storey, Charles H"]
[Black "miragha_yev"]
[WhiteFideId "406686"]
[WhiteElo "2252"]
[BlackElo "2760"]
[Result "0-1"]
[Round "05"]
[TimeControl "180+1"]
[Date "2022.10.18"]
[WhiteClock "0:00:52"]
[BlackClock "0:01:44"]

1. c4 {[%clk 0:02:59]}  c6 {[%clk 0:02:59]} 2. Nf3 {[%clk 0:02:55]}  d5 {[%clk 0:03:00]} 3. e3 {[%clk 0:02:55]}  e6 {[%clk 0:03:00]} 4. d4 {[%clk 0:02:55]}  Bd6 {[%clk 0:03:00]} 5. Nc3 {[%clk 0:02:55]}  Nf6 {[%clk 0:03:00]} 6. Qc2 {[%clk 0:02:49]}  Nbd7 {[%clk 0:02:59]} 7. e4 {[%clk 0:02:45]}  dxe4 {[%clk 0:02:59]} 8. Nxe4 {[%clk 0:02:46]}  Nxe4 {[%clk 0:03:00]} 9. Qxe4 {[%clk 0:02:46]}  Nf6 {[%clk 0:03:00]} 10. Qc2 {[%clk 0:02:39]}  c5 {[%clk 0:03:00]} 11. dxc5 {[%clk 0:02:33]}  Bxc5 {[%clk 0:03:01]} 12. Be2 {[%clk 0:02:33]}  O-O {[%clk 0:03:00]} 13. O-O {[%clk 0:02:33]}  b6 {[%clk 0:03:00]} 14. Ne5 {[%clk 0:02:29]}  Bb7 {[%clk 0:03:00]} 15. Bf3 {[%clk 0:02:29]}  Bxf3 {[%clk 0:02:59]} 16. Nxf3 {[%clk 0:02:30]}  Qc7 {[%clk 0:02:58]} 17. Bg5 {[%clk 0:02:27]}  Be7 {[%clk 0:02:58]} 18. Rac1 {[%clk 0:02:20]}  h6 {[%clk 0:02:58]} 19. Bxf6 {[%clk 0:02:18]}  Bxf6 {[%clk 0:02:57]} 20. b4 {[%clk 0:02:18]}  Rac8 {[%clk 0:02:56]} 21. c5 {[%clk 0:02:07]}  Qc6 {[%clk 0:02:54]} 22. Qc4 {[%clk 0:02:00]}  bxc5 {[%clk 0:02:54]} 23. b5 {[%clk 0:02:00]}  Qb6 {[%clk 0:02:53]} 24. a4 {[%clk 0:02:00]}  Rfd8 {[%clk 0:02:51]} 25. Rfd1 {[%clk 0:01:59]}  Rxd1+ {[%clk 0:02:51]} 26. Rxd1 {[%clk 0:02:00]}  Rd8 {[%clk 0:02:48]} 27. Rxd8+ {[%clk 0:01:54]}  Qxd8 {[%clk 0:02:49]} 28. g3 {[%clk 0:01:53]}  Qd5 {[%clk 0:02:45]} 29. Qxd5 {[%clk 0:01:48]}  exd5 {[%clk 0:02:46]} 30. a5 {[%clk 0:01:49]}  Bd8 {[%clk 0:02:13]} 31. b6 {[%clk 0:01:49]}  Bxb6 {[%clk 0:02:05]} 32. axb6 {[%clk 0:01:48]}  axb6 {[%clk 0:02:06]} 33. Ne5 {[%clk 0:01:48]}  f6 {[%clk 0:02:02]} 34. Nd7 {[%clk 0:01:47]}  c4 {[%clk 0:01:59]} 35. Kf1 {[%clk 0:01:35]}  b5 {[%clk 0:01:59]} 36. Ke2 {[%clk 0:01:23]}  Kf7 {[%clk 0:01:56]} 37. Ke3 {[%clk 0:01:10]}  Ke6 {[%clk 0:01:54]} 38. Nc5+ {[%clk 0:01:04]}  Kd6 {[%clk 0:01:51]} 39. Kd4 {[%clk 0:01:03]}  b4 {[%clk 0:01:51]} 40. Na6 {[%clk 0:00:52]}  b3 {[%clk 0:01:47]} 41. Nb4 {[%clk 0:00:52]}  b2 {[%clk 0:01:44]} 0-1


[Site "https://www.chess.com"]